[Event "*** Titled Tuesday Blitz"]
[Site "Chess.com"]
[Date "2021.02.16"]
[Round "8"]
[White "eduardoperalta"]
[Black "DenishevM"]
[Result "0-1"]
[WhiteElo "2422"]
[BlackElo "2594"]
[TimeControl "180+1"]
[EndTime "11:29:46 PST"]
[Termination "DenishevM won by resignation"]

1. d4 {[%clk 0:03:00.9]} 1... Nf6 {[%clk 0:02:57.9]} 2. c4 {[%clk 0:02:59.1]}
2... b6 {[%clk 0:02:58.1]} 3. Nf3 {[%clk 0:02:57.6]} 3... Bb7 {[%clk 0:02:57.7]}
4. g3 {[%clk 0:02:56.3]} 4... g6 {[%clk 0:02:57.4]} 5. Bg2 {[%clk 0:02:55.6]}
5... Bg7 {[%clk 0:02:57.1]} 6. O-O {[%clk 0:02:55.9]} 6... O-O {[%clk 0:02:57]}
7. d5 {[%clk 0:02:53]} 7... c6 {[%clk 0:02:55.1]} 8. Nc3 {[%clk 0:02:52.1]} 8...
cxd5 {[%clk 0:02:55.4]} 9. cxd5 {[%clk 0:02:51.8]} 9... Na6 {[%clk 0:02:55.8]}
10. Nd4 {[%clk 0:02:50.9]} 10... Rc8 {[%clk 0:02:35.6]} 11. e4 {[%clk
0:02:47.9]} 11... Nc5 {[%clk 0:02:29.9]} 12. Re1 {[%clk 0:02:40]} 12... Ba6
{[%clk 0:02:27.8]} 13. Re3 {[%clk 0:02:34.7]} 13... e5 {[%clk 0:02:18.9]} 14.
Nb3 {[%clk 0:02:29.2]} 14... d6 {[%clk 0:02:13]} 15. Nxc5 {[%clk 0:02:24.6]}
15... Rxc5 {[%clk 0:02:13.9]} 16. b4 {[%clk 0:02:21.7]} 16... Rc7 {[%clk
0:02:07.8]} 17. b5 {[%clk 0:02:17.8]} 17... Bc8 {[%clk 0:02:04.9]} 18. h3 {[%clk
0:02:09.1]} 18... Nd7 {[%clk 0:01:51.8]} 19. Ba3 {[%clk 0:02:03.8]} 19... Nc5
{[%clk 0:01:51.1]} 20. Bb4 {[%clk 0:01:55.7]} 20... f5 {[%clk 0:01:47.4]} 21.
exf5 {[%clk 0:01:51.5]} 21... gxf5 {[%clk 0:01:45.3]} 22. f4 {[%clk 0:01:48.2]}
22... exf4 {[%clk 0:01:40.5]} 23. gxf4 {[%clk 0:01:46.9]} 23... Qh4 {[%clk
0:01:36.8]} 24. Ne2 {[%clk 0:01:37.3]} 24... Bxa1 {[%clk 0:01:32.3]} 25. Qxa1
{[%clk 0:01:37]} 25... Rg7 {[%clk 0:01:32.4]} 26. Bc3 {[%clk 0:01:30.3]} 26...
Rg6 {[%clk 0:01:27.4]} 27. Be1 {[%clk 0:01:28.3]} 27... Qh6 {[%clk 0:01:19]} 28.
Qd4 {[%clk 0:01:25.4]} 28... Ne4 {[%clk 0:01:17]} 29. Kh2 {[%clk 0:01:21.6]}
29... Qg7 {[%clk 0:01:00.8]} 30. Qxg7+ {[%clk 0:01:15.4]} 30... Rxg7 {[%clk
0:01:01.7]} 31. Nd4 {[%clk 0:01:13.5]} 31... a6 {[%clk 0:00:44.9]} 32. a4 {[%clk
0:01:11.3]} 32... axb5 {[%clk 0:00:45]} 33. axb5 {[%clk 0:01:11.2]} 33... Ra7
{[%clk 0:00:45.7]} 34. Bxe4 {[%clk 0:01:03.5]} 34... fxe4 {[%clk 0:00:46.6]} 35.
Ne6 {[%clk 0:00:56.1]} 35... Bxe6 {[%clk 0:00:43.2]} 36. dxe6 {[%clk 0:00:55.6]}
36... d5 {[%clk 0:00:38.9]} 37. Rg3+ {[%clk 0:00:53.7]} 37... Rg7 {[%clk
0:00:34.9]} 38. Rxg7+ {[%clk 0:00:44.5]} 38... Kxg7 {[%clk 0:00:35.8]} 39. Bc3+
{[%clk 0:00:41.4]} 39... Kg6 {[%clk 0:00:35.2]} 40. e7 {[%clk 0:00:31.7]} 40...
Re8 {[%clk 0:00:34.4]} 41. Bb4 {[%clk 0:00:29.8]} 41... d4 {[%clk 0:00:34.1]}
42. Kg3 {[%clk 0:00:29.6]} 42... Kf5 {[%clk 0:00:34.1]} 43. Bd6 {[%clk
0:00:28.2]} 43... Ke6 {[%clk 0:00:32.3]} 44. Bb4 {[%clk 0:00:28]} 44... Rxe7
{[%clk 0:00:31.5]} 45. Bxe7 {[%clk 0:00:27.4]} 45... Kxe7 {[%clk 0:00:32.4]} 46.
Kg4 {[%clk 0:00:26.9]} 46... d3 {[%clk 0:00:32]} 47. f5 {[%clk 0:00:22.1]} 47...
d2 {[%clk 0:00:31.8]} 0-1

[Event "*** Titled Tuesday Blitz"]
[Site "Chess.com"]
[Date "2021.02.16"]
[Round "8"]
[White "Doudou2015"]
[Black "chesslh19"]
[Result "1/2-1/2"]
[WhiteElo "2055"]
[BlackElo "2216"]
[TimeControl "180+1"]
[EndTime "11:29:47 PST"]
[Termination "Game drawn - insufficient material"]

1. Nf3 {[%clk 0:03:00.9]} 1... d5 {[%clk 0:02:50.9]} 2. g3 {[%clk 0:03:01.8]}
2... Bg4 {[%clk 0:02:50.1]} 3. Bg2 {[%clk 0:03:02.7]} 3... c6 {[%clk 0:02:50.5]}
4. O-O {[%clk 0:03:03.6]} 4... Nd7 {[%clk 0:02:49.8]} 5. d3 {[%clk 0:03:00.3]}
5... Ngf6 {[%clk 0:02:49.4]} 6. Nbd2 {[%clk 0:02:59.7]} 6... e5 {[%clk
0:02:47.2]} 7. h3 {[%clk 0:02:59.4]} 7... Bxf3 {[%clk 0:02:46.9]} 8. Bxf3 {[%clk
0:02:58.4]} 8... Bc5 {[%clk 0:02:34.2]} 9. e4 {[%clk 0:02:56.9]} 9... dxe4
{[%clk 0:02:33.6]} 10. Nxe4 {[%clk 0:02:57.8]} 10... Nxe4 {[%clk 0:02:32]} 11.
Bxe4 {[%clk 0:02:58.2]} 11... O-O {[%clk 0:02:29.7]} 12. Be3 {[%clk 0:02:55.1]}
12... Qb6 {[%clk 0:01:29.8]} 13. Qc1 {[%clk 0:02:48.4]} 13... Bd4 {[%clk
0:01:09.5]} 14. c3 {[%clk 0:02:45.8]} 14... Bxe3 {[%clk 0:01:09.2]} 15. fxe3
{[%clk 0:02:46.6]} 15... Nf6 {[%clk 0:00:58]} 16. Bg2 {[%clk 0:02:46.6]} 16...
Rad8 {[%clk 0:00:55.9]} 17. d4 {[%clk 0:02:43.3]} 17... exd4 {[%clk 0:00:53.9]}
18. exd4 {[%clk 0:02:42.9]} 18... Qc7 {[%clk 0:00:53.5]} 19. Qg5 {[%clk
0:02:40.8]} 19... Qd6 {[%clk 0:00:43.1]} 20. Rae1 {[%clk 0:02:31.3]} 20... h6
{[%clk 0:00:34.6]} 21. Qf4 {[%clk 0:02:17.4]} 21... Qxf4 {[%clk 0:00:33.9]} 22.
Rxf4 {[%clk 0:02:18.3]} 22... Rfe8 {[%clk 0:00:31.4]} 23. Rff1 {[%clk
0:02:15.3]} 23... Kf8 {[%clk 0:00:20.5]} 24. Kf2 {[%clk 0:02:14.1]} 24... Rxe1
{[%clk 0:00:19.5]} 25. Rxe1 {[%clk 0:02:15]} 25... Re8 {[%clk 0:00:19.8]} 26.
Re3 {[%clk 0:02:12.3]} 26... Rxe3 {[%clk 0:00:18.8]} 27. Kxe3 {[%clk 0:02:13.2]}
27... Ke7 {[%clk 0:00:19.5]} 28. c4 {[%clk 0:02:12.5]} 28... Kd6 {[%clk
0:00:19.1]} 29. g4 {[%clk 0:02:08.5]} 29... g5 {[%clk 0:00:16.6]} 30. b4 {[%clk
0:02:06.2]} 30... b6 {[%clk 0:00:15.8]} 31. a3 {[%clk 0:02:02.2]} 31... Ng8
{[%clk 0:00:15.8]} 32. Ke4 {[%clk 0:01:59.7]} 32... Ne7 {[%clk 0:00:15.5]} 33.
Bf3 {[%clk 0:01:56.5]} 33... Ng6 {[%clk 0:00:13.3]} 34. Bg2 {[%clk 0:01:48.3]}
34... Nf4 {[%clk 0:00:12.4]} 35. Bf1 {[%clk 0:01:48.6]} 35... a5 {[%clk
0:00:06.8]} 36. Kf5 {[%clk 0:01:46]} 36... axb4 {[%clk 0:00:06.3]} 37. axb4
{[%clk 0:01:45.4]} 37... Ke7 {[%clk 0:00:04.6]} 38. Ke5 {[%clk 0:01:42.2]} 38...
Ng6+ {[%clk 0:00:02.2]} 39. Ke4 {[%clk 0:01:40]} 39... Nf4 {[%clk 0:00:02.5]}
40. Ke5 {[%clk 0:01:29.8]} 40... Ng6+ {[%clk 0:00:02]} 41. Ke4 {[%clk
0:01:28.9]} 41... Kd6 {[%clk 0:00:02.3]} 42. c5+ {[%clk 0:01:26.8]} 42... bxc5
{[%clk 0:00:02.3]} 43. bxc5+ {[%clk 0:01:27.7]} 43... Ke7 {[%clk 0:00:02.6]} 44.
d5 {[%clk 0:01:26.5]} 44... cxd5+ {[%clk 0:00:03]} 45. Kxd5 {[%clk 0:01:27.4]}
45... Kd7 {[%clk 0:00:03.4]} 46. Bb5+ {[%clk 0:01:14.9]} 46... Kc7 {[%clk
0:00:02.9]} 47. Ke4 {[%clk 0:01:13.6]} 47... Nf4 {[%clk 0:00:02.8]} 48. Kf5
{[%clk 0:01:14.1]} 48... Nxh3 {[%clk 0:00:02.8]} 49. Kf6 {[%clk 0:01:14.1]}
49... Nf2 {[%clk 0:00:03]} 50. Kxf7 {[%clk 0:01:14.1]} 50... Nxg4 {[%clk
0:00:03]} 51. Kg6 {[%clk 0:01:14.7]} 51... Ne5+ {[%clk 0:00:02.6]} 52. Kh5
{[%clk 0:01:09.6]} 52... g4 {[%clk 0:00:02.8]} 53. Kh4 {[%clk 0:01:09.3]} 53...
Nf3+ {[%clk 0:00:02.3]} 54. Kxg4 {[%clk 0:01:08.9]} 54... Nd4 {[%clk 0:00:02.9]}
55. Ba4 {[%clk 0:01:07.4]} 55... Ne6 {[%clk 0:00:03]} 56. c6 {[%clk 0:01:05.1]}
56... Nd4 {[%clk 0:00:03.2]} 57. Kh5 {[%clk 0:01:05]} 57... Nxc6 {[%clk
0:00:03.8]} 58. Kxh6 {[%clk 0:01:05.2]} 1/2-1/2

[Event "*** Titled Tuesday Blitz"]
[Site "Chess.com"]
[Date "2021.02.16"]
[Round "8"]
[White "EvgenyT"]
[Black "Zkid"]
[Result "1-0"]
[WhiteElo "2946"]
[BlackElo "2819"]
[TimeControl "180+1"]
[EndTime "11:29:48 PST"]
[Termination "EvgenyT won on time"]

1. c4 {[%clk 0:03:00.9]} 1... e5 {[%clk 0:02:59.5]} 2. g3 {[%clk 0:03:00.3]}
2... Nc6 {[%clk 0:02:58.7]} 3. Bg2 {[%clk 0:02:59.8]} 3... g6 {[%clk 0:02:59.2]}
4. Nc3 {[%clk 0:02:58.8]} 4... Bg7 {[%clk 0:02:59.3]} 5. e3 {[%clk 0:02:57.9]}
5... f5 {[%clk 0:02:56.5]} 6. Nge2 {[%clk 0:02:57.1]} 6... Nf6 {[%clk
0:02:56.4]} 7. O-O {[%clk 0:02:56.6]} 7... O-O {[%clk 0:02:56.2]} 8. Rb1 {[%clk
0:02:55.3]} 8... a5 {[%clk 0:02:55.4]} 9. a3 {[%clk 0:02:55]} 9... d6 {[%clk
0:02:54.4]} 10. d3 {[%clk 0:02:52.4]} 10... Ne7 {[%clk 0:02:47]} 11. b4 {[%clk
0:02:51.6]} 11... axb4 {[%clk 0:02:46]} 12. axb4 {[%clk 0:02:52.1]} 12... g5
{[%clk 0:02:46.1]} 13. f4 {[%clk 0:02:49.5]} 13... h6 {[%clk 0:02:41.6]} 14. b5
{[%clk 0:02:47.7]} 14... Ng6 {[%clk 0:02:40.1]} 15. Qd2 {[%clk 0:02:38.3]} 15...
gxf4 {[%clk 0:02:32.5]} 16. exf4 {[%clk 0:02:37.7]} 16... h5 {[%clk 0:02:32.5]}
17. Bb2 {[%clk 0:02:28]} 17... h4 {[%clk 0:02:30.4]} 18. Nd5 {[%clk 0:02:27.6]}
18... hxg3 {[%clk 0:02:27.9]} 19. hxg3 {[%clk 0:02:13.3]} 19... Ng4 {[%clk
0:02:22.1]} 20. Ne3 {[%clk 0:02:07.1]} 20... exf4 {[%clk 0:02:11.7]} 21. Nxg4
{[%clk 0:01:53.3]} 21... fxg4 {[%clk 0:01:58.6]} 22. Bxg7 {[%clk 0:01:51.2]}
22... Kxg7 {[%clk 0:01:57.3]} 23. Nxf4 {[%clk 0:01:51.2]} 23... Nxf4 {[%clk
0:01:45.5]} 24. Rxf4 {[%clk 0:01:50]} 24... Rxf4 {[%clk 0:01:45.3]} 25. Qxf4
{[%clk 0:01:46.8]} 25... Qf6 {[%clk 0:01:45.4]} 26. Qe3 {[%clk 0:01:43]} 26...
Ra2 {[%clk 0:01:35.2]} 27. d4 {[%clk 0:01:23.8]} 27... Qe6 {[%clk 0:01:06.2]}
28. Qg5+ {[%clk 0:01:18.4]} 28... Qg6 {[%clk 0:01:05.8]} 29. Qe7+ {[%clk
0:01:16.5]} 29... Qf7 {[%clk 0:01:03.6]} 30. Re1 {[%clk 0:01:07.9]} 30... Bf5
{[%clk 0:00:18.7]} 31. Bd5 {[%clk 0:00:52.1]} 31... Qxe7 {[%clk 0:00:17.6]} 32.
Rxe7+ {[%clk 0:00:52.2]} 32... Kf6 {[%clk 0:00:18.1]} 33. Rxc7 {[%clk
0:00:52.6]} 33... Rd2 {[%clk 0:00:12.5]} 34. Rf7+ {[%clk 0:00:43.8]} 34... Kg5
{[%clk 0:00:11.2]} 35. Rg7+ {[%clk 0:00:43.9]} 35... Kf6 {[%clk 0:00:11]} 36.
Rxb7 {[%clk 0:00:43.6]} 36... Rxd4 {[%clk 0:00:11.2]} 37. b6 {[%clk 0:00:41.7]}
37... Rd3 {[%clk 0:00:10]} 38. Kf2 {[%clk 0:00:39.2]} 38... Rd2+ {[%clk
0:00:06.5]} 39. Ke1 {[%clk 0:00:35.1]} 39... Rb2 {[%clk 0:00:05.5]} 40. Rb8
{[%clk 0:00:30.9]} 40... Ke5 {[%clk 0:00:02.6]} 41. b7 {[%clk 0:00:30.5]} 41...
Kd4 {[%clk 0:00:02.8]} 42. Re8 {[%clk 0:00:19.6]} 42... Rb1+ {[%clk 0:00:02.7]}
43. Kf2 {[%clk 0:00:17.7]} 1-0

[Event "*** Titled Tuesday Blitz"]
[Site "Chess.com"]
[Date "2021.02.16"]
[Round "8"]
[White "mishanick"]
[Black "KuzubovYuriy"]
[Result "1-0"]
[WhiteElo "3001"]
[BlackElo "2833"]
[TimeControl "180+1"]
[EndTime "11:29:49 PST"]
[Termination "mishanick won by resignation"]

1. e4 {[%clk 0:03:00.9]} 1... c5 {[%clk 0:02:58.4]} 2. Nf3 {[%clk 0:03:01.5]}
2... Nc6 {[%clk 0:02:58.5]} 3. d4 {[%clk 0:03:01.8]} 3... cxd4 {[%clk
0:02:59.4]} 4. Nxd4 {[%clk 0:03:02.6]} 4... Nf6 {[%clk 0:03:00.1]} 5. Nc3 {[%clk
0:03:03.1]} 5... e5 {[%clk 0:03:00.7]} 6. Ndb5 {[%clk 0:03:03.3]} 6... d6 {[%clk
0:03:01.3]} 7. Bg5 {[%clk 0:03:03.7]} 7... a6 {[%clk 0:03:01.2]} 8. Na3 {[%clk
0:03:04.4]} 8... b5 {[%clk 0:03:01.3]} 9. Bxf6 {[%clk 0:03:05.1]} 9... gxf6
{[%clk 0:03:02.2]} 10. Nd5 {[%clk 0:03:05.7]} 10... f5 {[%clk 0:03:02.9]} 11.
Bd3 {[%clk 0:03:04.9]} 11... Be6 {[%clk 0:03:02.7]} 12. c3 {[%clk 0:03:02.1]}
12... Bg7 {[%clk 0:03:01.3]} 13. Qh5 {[%clk 0:02:48.5]} 13... fxe4 {[%clk
0:02:20.3]} 14. Bxe4 {[%clk 0:02:47.4]} 14... Rc8 {[%clk 0:02:21]} 15. Nc2
{[%clk 0:02:30.1]} 15... Ne7 {[%clk 0:02:11.7]} 16. Nce3 {[%clk 0:02:28.3]}
16... Nxd5 {[%clk 0:02:04.8]} 17. Bxd5 {[%clk 0:02:28.1]} 17... Bxd5 {[%clk
0:01:57.9]} 18. Nxd5 {[%clk 0:02:29]} 18... O-O {[%clk 0:01:57.5]} 19. Rd1
{[%clk 0:02:13.2]} 19... f5 {[%clk 0:01:55.9]} 20. O-O {[%clk 0:02:13.6]} 20...
Kh8 {[%clk 0:01:52.6]} 21. f4 {[%clk 0:02:01]} 21... Qd7 {[%clk 0:01:48.9]} 22.
Kh1 {[%clk 0:01:50.1]} 22... Rce8 {[%clk 0:01:46.1]} 23. fxe5 {[%clk 0:01:39.8]}
23... Rxe5 {[%clk 0:01:43.4]} 24. Nf4 {[%clk 0:01:38.4]} 24... Kg8 {[%clk
0:01:37]} 25. Rd3 {[%clk 0:01:33.7]} 25... Re4 {[%clk 0:01:29.6]} 26. Rh3 {[%clk
0:01:13.6]} 26... h6 {[%clk 0:01:02.5]} 27. Rg3 {[%clk 0:01:12.9]} 27... Rfe8
{[%clk 0:00:38.3]} 28. h3 {[%clk 0:00:55.4]} 28... Rxf4 {[%clk 0:00:37]} 29.
Rxf4 {[%clk 0:00:53.8]} 29... Re1+ {[%clk 0:00:37.5]} 30. Kh2 {[%clk 0:00:54.2]}
30... Qa7 {[%clk 0:00:36.9]} 31. Rd4 {[%clk 0:00:41.3]} 31... f4 {[%clk
0:00:20.2]} 32. Rg4 {[%clk 0:00:28.2]} 32... f3 {[%clk 0:00:15.1]} 33. gxf3
{[%clk 0:00:26.1]} 33... Re2+ {[%clk 0:00:14.9]} 34. Kg3 {[%clk 0:00:25]} 34...
d5 {[%clk 0:00:12.3]} 35. Qxd5+ {[%clk 0:00:24.1]} 35... Kh8 {[%clk 0:00:12.4]}
36. Qd8+ {[%clk 0:00:20.4]} 36... Kh7 {[%clk 0:00:12.7]} 37. Qd7 {[%clk
0:00:15.9]} 37... Qb8+ {[%clk 0:00:11.3]} 38. Rdf4 {[%clk 0:00:15]} 38... Qg8
{[%clk 0:00:08.3]} 39. Rf7 {[%clk 0:00:13]} 39... Qb8+ {[%clk 0:00:08.4]} 40. f4
{[%clk 0:00:12.6]} 40... Re3+ {[%clk 0:00:06.3]} 41. Kf2 {[%clk 0:00:12.8]} 1-0

[Event "*** Titled Tuesday Blitz"]
[Site "Chess.com"]
[Date "2021.02.16"]
[Round "8"]
[White "MFBerna"]
[Black "anon102030"]
[Result "1-0"]
[WhiteElo "2504"]
[BlackElo "2690"]
[TimeControl "180+1"]
[EndTime "11:29:49 PST"]
[Termination "MFBerna won on time"]

1. e4 {[%clk 0:03:00.9]} 1... e5 {[%clk 0:02:55.3]} 2. Nf3 {[%clk 0:03:01.2]}
2... Nc6 {[%clk 0:02:55.1]} 3. Bc4 {[%clk 0:03:01.6]} 3... Bc5 {[%clk
0:02:54.6]} 4. O-O {[%clk 0:03:01.4]} 4... Nf6 {[%clk 0:02:54.2]} 5. Re1 {[%clk
0:03:00.9]} 5... d6 {[%clk 0:02:54.4]} 6. c3 {[%clk 0:03:00.6]} 6... O-O {[%clk
0:02:49.6]} 7. h3 {[%clk 0:02:52.8]} 7... Be6 {[%clk 0:02:43.1]} 8. Bb3 {[%clk
0:02:46.7]} 8... d5 {[%clk 0:02:34.7]} 9. exd5 {[%clk 0:02:38.9]} 9... Bxd5
{[%clk 0:02:35.6]} 10. d3 {[%clk 0:02:34]} 10... Re8 {[%clk 0:02:33.7]} 11. Bg5
{[%clk 0:02:24.2]} 11... Bxb3 {[%clk 0:02:31.3]} 12. Qxb3 {[%clk 0:02:19.2]}
12... Bb6 {[%clk 0:02:29.9]} 13. Nbd2 {[%clk 0:02:15.1]} 13... Qxd3 {[%clk
0:02:24.5]} 14. Bxf6 {[%clk 0:02:14.3]} 14... gxf6 {[%clk 0:02:25.4]} 15. Ne4
{[%clk 0:02:04.8]} 15... Re6 {[%clk 0:02:11.5]} 16. Rad1 {[%clk 0:02:04]} 16...
Qa6 {[%clk 0:02:12.1]} 17. Rd7 {[%clk 0:01:49.7]} 17... Rd8 {[%clk 0:01:55.5]}
18. Red1 {[%clk 0:01:48.6]} 18... Rxd7 {[%clk 0:01:55]} 19. Rxd7 {[%clk
0:01:49.5]} 19... Qe2 {[%clk 0:01:50.2]} 20. Qd5 {[%clk 0:01:39]} 20... f5
{[%clk 0:01:43.2]} 21. Neg5 {[%clk 0:01:17.1]} 21... Qxf2+ {[%clk 0:01:03.6]}
22. Kh2 {[%clk 0:01:16.1]} 22... Ne7 {[%clk 0:00:23.7]} 23. Rd8+ {[%clk
0:01:09.7]} 23... Kg7 {[%clk 0:00:23.4]} 24. Nxe6+ {[%clk 0:01:09.1]} 24... fxe6
{[%clk 0:00:24.3]} 25. Qxe5+ {[%clk 0:01:03.2]} 25... Kf7 {[%clk 0:00:19.6]} 26.
Ng5+ {[%clk 0:00:59.4]} 26... Kg6 {[%clk 0:00:19.3]} 27. Qxe6+ {[%clk
0:00:47.3]} 27... Kxg5 {[%clk 0:00:19.6]} 28. Qxe7+ {[%clk 0:00:47.3]} 28... Kf4
{[%clk 0:00:19.9]} 29. Qb4+ {[%clk 0:00:35.3]} 29... Ke3 {[%clk 0:00:14.1]} 30.
Re8+ {[%clk 0:00:25.8]} 30... Kd3 {[%clk 0:00:14.3]} 31. Qb5+ {[%clk 0:00:22.1]}
31... Kd2 {[%clk 0:00:14.5]} 32. Rd8+ {[%clk 0:00:17.4]} 32... Kc1 {[%clk
0:00:13.7]} 33. Qd3 {[%clk 0:00:08.9]} 33... Be3 {[%clk 0:00:05.6]} 34. Qd1+
{[%clk 0:00:07.8]} 34... Kxb2 {[%clk 0:00:05.8]} 35. Qb3+ {[%clk 0:00:08]} 35...
Ka1 {[%clk 0:00:03.2]} 36. Rd1+ {[%clk 0:00:08.2]} 1-0

[Event "*** Titled Tuesday Blitz"]
[Site "Chess.com"]
[Date "2021.02.16"]
[Round "8"]
[White "dretch"]
[Black "Spalir"]
[Result "1-0"]
[WhiteElo "2849"]
[BlackElo "2671"]
[TimeControl "180+1"]
[EndTime "11:29:51 PST"]
[Termination "dretch won by resignation"]

1. d4 {[%clk 0:03:00.9]} 1... Nf6 {[%clk 0:02:59.3]} 2. c4 {[%clk 0:03:01.5]}
2... g6 {[%clk 0:02:58.9]} 3. Nc3 {[%clk 0:03:02]} 3... d5 {[%clk 0:02:58.5]} 4.
e3 {[%clk 0:03:00.2]} 4... Bg7 {[%clk 0:02:54.9]} 5. Qb3 {[%clk 0:03:00.8]} 5...
c6 {[%clk 0:02:45.3]} 6. Nf3 {[%clk 0:02:59.8]} 6... O-O {[%clk 0:02:43.7]} 7.
cxd5 {[%clk 0:02:56]} 7... cxd5 {[%clk 0:02:42.6]} 8. Be2 {[%clk 0:02:48.7]}
8... Nc6 {[%clk 0:02:42.4]} 9. O-O {[%clk 0:02:47.7]} 9... Na5 {[%clk 0:02:37]}
10. Qa3 {[%clk 0:02:46.3]} 10... Bf5 {[%clk 0:02:24.5]} 11. Ne5 {[%clk
0:02:42.5]} 11... a6 {[%clk 0:02:07.9]} 12. Bd2 {[%clk 0:02:38.4]} 12... Nc6
{[%clk 0:01:52.4]} 13. Nxc6 {[%clk 0:02:37]} 13... bxc6 {[%clk 0:01:53.3]} 14.
Rac1 {[%clk 0:02:34.2]} 14... Qd6 {[%clk 0:01:49.5]} 15. Na4 {[%clk 0:02:13.4]}
15... Qxa3 {[%clk 0:01:28.1]} 16. bxa3 {[%clk 0:02:14.3]} 16... Nd7 {[%clk
0:01:26.8]} 17. g4 {[%clk 0:02:01.8]} 17... Be6 {[%clk 0:01:22.9]} 18. Rxc6
{[%clk 0:01:58.7]} 18... Rfc8 {[%clk 0:01:21.1]} 19. Rfc1 {[%clk 0:01:48.2]}
19... Rxc6 {[%clk 0:01:20.9]} 20. Rxc6 {[%clk 0:01:48]} 20... a5 {[%clk
0:01:21.4]} 21. f3 {[%clk 0:01:29.4]} 21... Bh6 {[%clk 0:01:11.9]} 22. Kf2
{[%clk 0:01:25.3]} 22... Bg5 {[%clk 0:01:09.1]} 23. Ba6 {[%clk 0:01:16.4]} 23...
Kg7 {[%clk 0:00:59.3]} 24. Bb7 {[%clk 0:00:57.7]} 24... Rb8 {[%clk 0:00:56.8]}
25. Rc7 {[%clk 0:00:55.9]} 25... Nf6 {[%clk 0:00:39]} 26. Nc5 {[%clk 0:00:50.5]}
26... Ne8 {[%clk 0:00:36.9]} 27. Na6 {[%clk 0:00:14.4]} 27... Rd8 {[%clk
0:00:29.3]} 28. Rc5 {[%clk 0:00:14.2]} 28... Nd6 {[%clk 0:00:29.9]} 29. Bxd5
{[%clk 0:00:13.6]} 29... Bxd5 {[%clk 0:00:26.4]} 30. Rxd5 {[%clk 0:00:13.6]}
30... Ra8 {[%clk 0:00:26.4]} 31. Nc5 {[%clk 0:00:11.9]} 31... Bh4+ {[%clk
0:00:25.6]} 32. Ke2 {[%clk 0:00:12]} 32... Nc4 {[%clk 0:00:25.9]} 33. Bc1 {[%clk
0:00:11.8]} 33... Rb8 {[%clk 0:00:24.6]} 34. Kd3 {[%clk 0:00:11.3]} 34... Nb6
{[%clk 0:00:24.8]} 35. Nd7 {[%clk 0:00:07.6]} 35... Nxd7 {[%clk 0:00:23.2]} 36.
Rxd7 {[%clk 0:00:07.9]} 36... Be1 {[%clk 0:00:24]} 37. Rc7 {[%clk 0:00:06.9]}
37... Bf2 {[%clk 0:00:21.1]} 38. Rc2 {[%clk 0:00:06.7]} 38... Bh4 {[%clk
0:00:20.5]} 39. Bb2 {[%clk 0:00:07]} 39... Rb5 {[%clk 0:00:19.5]} 40. Bc3 {[%clk
0:00:06.7]} 40... h5 {[%clk 0:00:19.5]} 41. a4 {[%clk 0:00:06.8]} 41... Rb1
{[%clk 0:00:18.6]} 42. gxh5 {[%clk 0:00:06.8]} 42... gxh5 {[%clk 0:00:19.5]} 43.
Bxa5 {[%clk 0:00:06.5]} 43... Rd1+ {[%clk 0:00:18.4]} 44. Bd2 {[%clk 0:00:06.7]}
44... Bf2 {[%clk 0:00:17.3]} 45. Ke2 {[%clk 0:00:06.5]} 1-0

[Event "*** Titled Tuesday Blitz"]
[Site "Chess.com"]
[Date "2021.02.16"]
[Round "8"]
[White "AniJak"]
[Black "JiiHart"]
[Result "1-0"]
[WhiteElo "2321"]
[BlackElo "2113"]
[TimeControl "180+1"]
[EndTime "11:29:52 PST"]
[Termination "AniJak won by resignation"]

1. e4 {[%clk 0:03:00.9]} 1... e5 {[%clk 0:02:59.5]} 2. Nf3 {[%clk 0:03:00.9]}
2... Nc6 {[%clk 0:02:59.9]} 3. Bb5 {[%clk 0:03:01.1]} 3... a6 {[%clk 0:03:00.3]}
4. Ba4 {[%clk 0:03:01.3]} 4... Nf6 {[%clk 0:03:00.4]} 5. O-O {[%clk 0:03:01.4]}
5... Nxe4 {[%clk 0:03:00.6]} 6. d4 {[%clk 0:02:55]} 6... b5 {[%clk 0:02:59.7]}
7. Bb3 {[%clk 0:02:53.5]} 7... d5 {[%clk 0:03:00.1]} 8. dxe5 {[%clk 0:02:52.5]}
8... Be6 {[%clk 0:03:00.4]} 9. Re1 {[%clk 0:02:38.4]} 9... Bc5 {[%clk
0:02:51.6]} 10. Be3 {[%clk 0:02:33.6]} 10... O-O {[%clk 0:02:25.3]} 11. Bxc5
{[%clk 0:02:32.3]} 11... Nxc5 {[%clk 0:02:24.2]} 12. Nd4 {[%clk 0:02:33.2]}
12... Nxd4 {[%clk 0:02:18.4]} 13. Qxd4 {[%clk 0:02:32.6]} 13... Qe7 {[%clk
0:02:04.4]} 14. Nc3 {[%clk 0:02:31.5]} 14... Nxb3 {[%clk 0:02:04.1]} 15. axb3
{[%clk 0:02:31]} 15... c5 {[%clk 0:01:43.7]} 16. Qf4 {[%clk 0:02:26.5]} 16... b4
{[%clk 0:01:12.6]} 17. Ne2 {[%clk 0:02:17.7]} 17... h6 {[%clk 0:01:09.9]} 18.
Ng3 {[%clk 0:02:16.5]} 18... Qg5 {[%clk 0:01:09.7]} 19. Qf3 {[%clk 0:02:10.4]}
19... Qg4 {[%clk 0:00:57.9]} 20. Qxg4 {[%clk 0:01:58.9]} 20... Bxg4 {[%clk
0:00:57.5]} 21. Ra5 {[%clk 0:01:58.2]} 21... Rfc8 {[%clk 0:00:51.6]} 22. Rea1
{[%clk 0:01:54.6]} 22... Rc6 {[%clk 0:00:51.2]} 23. f3 {[%clk 0:01:51.5]} 23...
Bc8 {[%clk 0:00:50.2]} 24. Nf1 {[%clk 0:01:48.5]} 24... Bb7 {[%clk 0:00:49.3]}
25. Ne3 {[%clk 0:01:47]} 25... Rc7 {[%clk 0:00:48.1]} 26. Rd1 {[%clk 0:01:43.5]}
26... Rd8 {[%clk 0:00:46.4]} 27. Nc4 {[%clk 0:01:38.1]} 27... f6 {[%clk
0:00:35.5]} 28. exf6 {[%clk 0:01:14.4]} 28... gxf6 {[%clk 0:00:35.1]} 29. Ne3
{[%clk 0:01:14.4]} 29... Kf7 {[%clk 0:00:27.9]} 30. Kf2 {[%clk 0:01:04.1]} 30...
h5 {[%clk 0:00:27.9]} 31. Raa1 {[%clk 0:01:03.5]} 31... Rcd7 {[%clk 0:00:26.4]}
32. Rd2 {[%clk 0:01:00.5]} 32... Ke6 {[%clk 0:00:26.4]} 33. g3 {[%clk 0:00:59]}
33... Kf7 {[%clk 0:00:19.9]} 34. Ng2 {[%clk 0:00:59.2]} 34... c4 {[%clk
0:00:19.3]} 35. Nf4 {[%clk 0:00:44.4]} 35... cxb3 {[%clk 0:00:16.3]} 36. cxb3
{[%clk 0:00:44.7]} 36... h4 {[%clk 0:00:14.9]} 37. gxh4 {[%clk 0:00:43.2]} 37...
d4 {[%clk 0:00:14.7]} 38. h5 {[%clk 0:00:39.4]} 38... Bc6 {[%clk 0:00:14.7]} 39.
Rxa6 {[%clk 0:00:37.3]} 39... Bb5 {[%clk 0:00:14.2]} 40. Rb6 {[%clk 0:00:36.5]}
40... Rd5 {[%clk 0:00:05.6]} 41. Nxd5 {[%clk 0:00:36.1]} 41... Rxd5 {[%clk
0:00:06.5]} 42. h6 {[%clk 0:00:33]} 42... Kg6 {[%clk 0:00:06.7]} 43. Kg3 {[%clk
0:00:27.7]} 43... Kh7 {[%clk 0:00:07.6]} 44. Kf4 {[%clk 0:00:26.6]} 44... Kg6
{[%clk 0:00:08.5]} 45. Ke4 {[%clk 0:00:25.6]} 45... Kxh6 {[%clk 0:00:09.4]} 46.
Kxd5 {[%clk 0:00:25.6]} 46... Kg6 {[%clk 0:00:10.3]} 47. Rxd4 {[%clk 0:00:25.8]}
1-0